{"text_format":"3","workbook":"xlsx","n_sheets":1,"sheets":["frente"],"not_rendered":{"defined_names":2},"read":"whole","date_system":"1900"}

{"sheet":"frente","index":0,"n_rows":142,"n_cols":60,"rows_kept":142,"merged":[[0,1,0,19],[0,22,0,40],[1,41,1,42],[2,2,2,18],[2,23,2,39],[3,2,3,18],[3,23,3,39],[4,2,4,18],[4,23,4,39],[6,8,6,12],[6,29,6,33],[7,5,7,16],[7,26,7,37],[8,2,8,13],[8,23,8,34],[9,2,9,16],[9,23,9,37],[10,2,10,16],[12,3,12,6],[12,12,12,14],[12,17,12,18],[12,24,12,27],[12,33,12,35],[12,38,12,39],[13,38,13,39],[14,2,14,15],[14,23,14,36],[14,38,14,39],[15,2,15,7],[15,8,15,15],[15,23,15,28],[15,29,15,36],[16,2,16,15],[16,16,16,18],[16,23,16,36],[16,37,16,39],[17,2,17,7],[17,8,17,15],[17,16,17,18],[17,23,17,28],[17,29,17,36],[17,37,17,39],[18,2,18,4],[18,5,18,16],[18,23,18,25],[18,26,18,37],[21,2,21,3],[21,4,21,18],[21,23,21,24],[21,25,21,39],[22,3,22,4],[22,5,22,6],[22,26,22,27],[24,2,24,3],[24,4,24,18],[24,23,24,24],[24,25,24,39],[27,2,27,3],[27,4,27,18],[27,23,27,24],[27,25,27,39],[28,2,28,18],[28,23,28,39],[29,2,29,18],[29,23,29,39],[30,2,30,18],[30,23,30,39],[32,2,32,3],[32,4,32,18],[32,23,32,24],[32,25,32,39],[34,2,34,18],[34,23,34,39],[35,2,35,3],[35,4,35,18],[35,23,35,24],[35,25,35,39],[37,2,37,3],[37,4,37,18],[39,23,39,24],[39,25,39,39],[44,4,44,8],[44,10,44,16],[44,25,44,29],[44,31,44,37],[45,4,45,8],[45,10,45,16],[45,25,45,29],[45,31,45,37],[51,4,51,8],[51,10,51,16],[51,25,51,29],[51,31,51,37],[52,4,52,8],[52,10,52,16],[52,25,52,29],[52,31,52,37],[57,7,57,11],[57,28,57,32],[88,2,88,18],[88,23,88,39],[89,2,89,18],[89,23,89,39],[90,2,90,18],[90,23,90,39],[91,2,91,18],[91,23,91,39],[92,2,92,18],[92,23,92,39],[93,2,93,18],[93,23,93,39],[94,2,94,18],[94,23,94,39],[95,2,95,18],[95,23,95,39],[96,2,96,18],[96,23,96,39],[97,2,97,18],[97,23,97,39],[98,2,98,18],[98,23,98,39],[99,2,99,18],[99,23,99,39],[100,2,100,18],[100,23,100,39],[101,2,101,18],[101,23,101,39],[102,2,102,18],[102,23,102,39],[103,2,103,18],[103,23,103,39],[104,2,104,18],[104,23,104,39],[105,2,105,18],[105,23,105,39],[106,2,106,18],[106,23,106,39],[116,4,116,8],[116,10,116,16],[116,25,116,29],[116,31,116,37],[122,4,122,8],[122,10,122,16],[122,25,122,29],[122,31,122,37],[128,8,128,10],[128,29,128,31],[136,8,136,12],[136,29,136,33],[138,4,138,8],[138,10,138,16],[138,25,138,29],[138,31,138,37],[141,4,141,8],[141,10,141,16],[141,25,141,29],[141,31,141,37]]}
[null,"Convenio de Rescision de Transferencia a Prueba (107)",{"$nulls":20},"Convenio de Rescision de Transferencia a prueba (107)",{"$nulls":18},"4 EFECTOS",{"$nulls":11},"Enero",1,2019," ACADEMIA JAVIER MASCHERANO","LIGA DEPORTIVA DEL OESTE (JUNÍN)","***JUNIN***"]
[{"$nulls":40}," ","TAMAÑO HOJA A4",{"$nulls":11},"Febrero",2,2020," ATL. SOC. Y DEP. DE LINCOLN JUVENTUD UNIDA","LIGA DEPORTIVA CENTRAL VEDIA","ATLETICO AMBOS MUNDOS","LIGA DEPORTIVA DEL OESTE (JUNÍN)"]
[null,null,"Liga Amateur de Deportes de Lincoln",{"$nulls":20},"Liga Amateur de Deportes de Lincoln",{"$nulls":16}," ",{"$nulls":12},"Marzo",3,2021," ATLÉTICO ARGENTINO","LIGA DE FÚTBOL DE GENERAL VILLEGAS","ATLETICO BUENOS AIRES AL PACÍFICO","LIGA DEPORTIVA DEL OESTE (JUNÍN)"]
[null,null,"Afiliada a la A.F.A.  -  Desp. Nº 10.170  - Estrada 1.230 - Lincoln - 6070 ",{"$nulls":20},"Afiliada a la A.F.A.  -  Desp. Nº 10.170  - Estrada 1.230 - Lincoln - 6070 ",{"$nulls":16}," ",{"$nulls":12},"Abril",4,2022," ATLÉTICO BAYAUCA","LIGA DE FÚTBOL DEL OESTE (AMÉRICA/RIVADAVIA)","ATLETICO DEFENSA ARGENTINA","LIGA DEPORTIVA DEL OESTE (JUNÍN)"]
[null,null,"Teléfono fijo 02355 421081 Mail: ligalincoln@gmail.com",{"$nulls":20},"Teléfono fijo 02355 421081 Mail: ligalincoln@gmail.com",{"$nulls":16}," ",{"$nulls":12},"Mayo",5,2023," ATLÉTICO EL LINQUEÑO","LIGA TOLDENSE DE FÚTBOL","ATLETICO INDEPENDIENTE ","LIGA DEPORTIVA DEL OESTE (JUNÍN)"]
[{"$nulls":40}," ",{"$nulls":12},"Junio",6,2024," ATLÉTICO INDEPENDIENTE","LIGA DEPORTIVA DE GENERAL ARENALES","ATLETICO MARIANO MORENO","LIGA DEPORTIVA DEL OESTE (JUNÍN)"]
[{"$nulls":19}," ",{"$nulls":20}," ",{"$nulls":12},"Julio",7,null," ATLÉTICO LAS TOSCAS","LIGA DEPORTIVA DE FÚTBOL (ROJAS)","ATLETICO RIVADAVIA","LIGA DEPORTIVA DEL OESTE (JUNÍN)"]
[{"$f":"REPT(\"-\",50)","v":"--------------------------------------------------"}," ","Del Club CESIONARIO",null,null,{"$f":"IF(AA8=\"\",\"FALTA NOMBRE DEL CLUB\",CONCATENATE(A8,U8,V8))","v":"FALTA NOMBRE DEL CLUB"},{"$nulls":12},",de la Liga"," ",{"$f":"UPPER(AA8)","v":""},{"$f":"REPT(\"-\",50)","v":"--------------------------------------------------"}," ","Del Club CESIONARIO",{"$nulls":15},",de la Liga"," ",{"$nulls":12},"Agosto",8,null," ATLÉTICO PASTEUR Y FERROCARRIL OESTE","LIGA CASARENSE DE FÚTBOL","ATLETICO RIVER PLATE","LIGA DEPORTIVA DEL OESTE (JUNÍN)"]
[null,null,"LIGA AMATEUR DE DEPORTES DE LINCOLN",{"$nulls":15},",para el Club CEDENTE (De Origen)"," ",{"$nulls":3},"LIGA AMATEUR DE DEPORTES DE LINCOLN",{"$nulls":15},",para el Club CEDENTE (De  Origen)"," ",{"$nulls":12},"Septiembre",9,null," ATLÉTICO PINTENSE","LIGA DEPORTIVA DE SALTO","ATLETICO SARMIENTO","LIGA DEPORTIVA DEL OESTE (JUNÍN)"]
[{"$f":"REPT(\"-\",50)","v":"--------------------------------------------------"}," ",{"$f":"IF(X10=\"\",\"FALTA NOMBRE DEL CLUB\",CONCATENATE(A10,U10,V10))","v":"FALTA NOMBRE DEL CLUB"},{"$nulls":15},",de la Liga"," ",{"$f":"UPPER(X10)","v":""},{"$f":"REPT(\"-\",50)","v":"--------------------------------------------------"}," ",{"$nulls":16},",de la Liga"," ",{"$nulls":12},"Octubre",10,null," ATLÉTICO ROBERTS","LIGA BRAGADENSE DE FÚTBOL","ATLETICO VILLA BELGRANO","LIGA DEPORTIVA DEL OESTE (JUNÍN)"]
["--------------------------------------------------"," ","LIGA AMATEUR DE DEPORTES DE LINCOLN.",{"$nulls":16}," ",{"$f":"UPPER(X11)","v":"LIGA AMATEUR DE DEPORTES DE LINCOLN."},"--------------------------------------------------"," ","LIGA AMATEUR DE DEPORTES DE LINCOLN.",{"$nulls":16}," ",{"$nulls":12},"Noviembre",11,null," ATLÉTICO Y SOCIAL EL TRIUNFO","LIGA CHIVILCOYANA DE FÚTBOL","JORGE NEWBERY","LIGA DEPORTIVA DEL OESTE (JUNÍN)"]
[{"$nulls":40}," ",{"$nulls":12},"Diciembre",12,null," ATLÉTICO Y SOCIAL SAN MARTIN","LIGA DEPORTIVA DE CHACABUCO","ORIGONE FOOT BALL CLUB","LIGA DEPORTIVA DEL OESTE (JUNÍN)"]
[null,null,"En",{"$f":"PROPER(Y13)","v":""},{"$nulls":3},", a los",{"$f":"IF(AD13=\"\",\"\",AD13)","v":""},"días del mes de",null,null,{"$f":"PROPER(AH13)","v":""},null,null,"de",{"$f":"IF(AL13=\"\",\"\",AL13)","v":""},"entre los",{"$nulls":5},"En",{"$nulls":4},", a los",null,"días del mes de",{"$nulls":5},"de",null,"entre los",null," ",{"$nulls":13},13,null," DEPORTIVO SOCIAL DE LINCOLN SAN MIGUEL","LIGA DEPORTIVA DE COLÓN","RIVADAVIA","LIGA DEPORTIVA DEL OESTE (JUNÍN)"]
[null," ","Clubes CEDENTE y CESIONARIO, representados en este acto por sus Presidentes y Secretarios, Señores:",{"$nulls":19}," ","Clubes CEDENTE y CESIONARIO, representados en este acto por sus Presidentes y Secretarios, Señores:",{"$nulls":16}," ",{"$nulls":13},14,null," DEPORTIVO Y SOCIAL ARENAZA","LIGA MERCEDINA DE FÚTBOL","SOCIAL, CULTURAL Y DEPORTIVO BAIGORRITA","LIGA DEPORTIVA DEL OESTE (JUNÍN)"]
[{"$f":"REPT(\"-\",50)","v":"--------------------------------------------------"}," ",{"$f":"IF(X15=\"\",\"\",CONCATENATE(A15,U15,V15))","v":""},{"$nulls":13},"  y Señores:",{"$nulls":3},{"$f":"UPPER(X15)","v":""},{"$f":"REPT(\"-\",50)","v":"--------------------------------------------------"}," ",{"$nulls":14},"y Señores:",null,null," ",{"$nulls":13},15,null," SOCIAL Y DEPORTIVO GENERAL PINTO","LIGA NUEVEJULIENSE DE FÚTBOL"]
[null," ","(Presidente y Secretario club Cedente)",{"$nulls":5},{"$f":"+AD16","v":""},{"$nulls":13}," ","(Presidente y Secretario club Cedente)",{"$nulls":5},{"$f":"IF(X10=\"\",\"\",X10)","v":""},{"$nulls":10}," ",{"$nulls":13},16,null," SOCIAL Y DEPORTIVO VILLA FRANCIA","LIGA PEHUAJENSE DE FÚTBOL","***VEDIA***"]
[{"$f":"REPT(\"-\",50)","v":"--------------------------------------------------"}," ",{"$f":"IF(X17=\"\",\"\",CONCATENATE(A17,U17,V17))","v":""},{"$nulls":13},"y con la conformidad",{"$nulls":3},{"$f":"UPPER(X17)","v":""},{"$f":"REPT(\"-\",50)","v":"--------------------------------------------------"}," ",{"$nulls":14},"y con la conformidad",null,null," ",{"$nulls":13},17,null,null,"LIGA TRENQUELAUQUENSE DE FÚTBOL","ANCALU SPORT CLUB","LIGA DEPORTIVA CENTRAL VEDIA"]
[null," ","(Presidente y Secretario club Cesionario)",{"$nulls":5},{"$f":"+AD18","v":""},{"$nulls":13}," ","(Presidente y Secretario club Cesionario)",{"$nulls":5},{"$f":"IF(AA8=\"\",\"\",AA8)","v":""},{"$nulls":10}," ",{"$nulls":13},18,null,null,"LIGA VEINTICINQUEÑA DE FÚTBOL","CLUB ATLETICO VEDIA ALUMNI","LIGA DEPORTIVA CENTRAL VEDIA"]
[{"$f":"REPT(\"-\",50)","v":"--------------------------------------------------"}," ","del jugador,  señor",null,null,{"$f":"IF(AA19=\"\",\"FALTA NOMBRE DEL JUGADOR\",CONCATENATE(A19,U19,V19))","v":"FALTA NOMBRE DEL JUGADOR"},{"$nulls":12},", se ha for-",null,{"$f":"UPPER(AA19)","v":""},{"$f":"REPT(\"-\",50)","v":"--------------------------------------------------"}," ","del jugador,  señor",{"$nulls":15},", se ha for-"," ",{"$nulls":13},19,{"$nulls":3},"DEFENSORES DE CHRISTOPHERSEN","LIGA DEPORTIVA CENTRAL VEDIA"]
[null,null,"malizado este CONVENIO atento a las siguientes cláusulas:",{"$nulls":20},"malizado este CONVENIO atento a las siguientes cláusulas:",{"$nulls":16}," ",{"$nulls":13},20,{"$nulls":3},"DEPORTIVO SARMIENTO","LIGA DEPORTIVA CENTRAL VEDIA"]
[{"$nulls":40}," ",{"$nulls":13},21,{"$nulls":3},"DEPORTIVO Y RECREATIVO LEANDRO N. ALEM","LIGA DEPORTIVA CENTRAL VEDIA"]
[null,null,"PRIMERA:",null,"El  Club  CESIONARIO reintegra al JUGADOR al Club CEDENTE (De Origen) a partir de las CERO (0) horas del día",{"$nulls":18},"PRIMERA:",null,"El  Club  CESIONARIO reintegra al JUGADOR al Club CEDENTE (De Origen) a partir de las CERO (0)  del",{"$nulls":14}," ",{"$nulls":13},22,null,"………………..",null,"FOOT BALL CLUB MATIENZO","LIGA DEPORTIVA CENTRAL VEDIA"]
[null,null,{"$f":"IF(Y23=\"\",\"\",Y23)","v":""},"del mes de",null,{"$f":"PROPER(AA23)","v":""},null,"de",{"$f":"IF(AD23=\"\",\"\",AD23)","v":""},".",{"$nulls":13},"día",null,"del mes de",null,null,"de",{"$nulls":11}," ",{"$nulls":13},23,{"$nulls":3},"HURACAN FOOT BALL CLUB","LIGA DEPORTIVA CENTRAL VEDIA"]
[{"$nulls":40}," ",{"$nulls":13},24,{"$nulls":3},"SOCIAL Y DEPORTIVO ALBERDI","LIGA DEPORTIVA CENTRAL VEDIA"]
[null,null,"SEGUNDA:",null,"Queda en claro que a partir de la fecha aludida en la Cláusula PRIMERA el Jugador no podrá actuar en ningún",{"$nulls":18},"SEGUNDA:",null,"Queda en claro que a partir de la fecha aludida en la Cláusula PRIMERA el Jugador no podrá actuar en nin-",{"$nulls":14}," ",{"$nulls":13},25,{"$nulls":3},"SOCIAL Y DEPORTIVO ATLANTA","LIGA DEPORTIVA CENTRAL VEDIA"]
[null,null,"tipo de competencia o partido a favor del Club CESIONARIO.",{"$nulls":20},"gún tipo de competencia o partido a favor del Club CESIONARIO.",{"$nulls":16}," ",{"$nulls":13},26,{"$nulls":3},"SOCIAL Y DEPORTIVO BLAQUIER","LIGA DEPORTIVA CENTRAL VEDIA"]
[{"$nulls":40}," ",{"$nulls":13},27,{"$nulls":3},"SOCIAL Y DEPORTIVO MARTIN D. YRIGOYEN","LIGA DEPORTIVA CENTRAL VEDIA"]
[null,null,"TERCERA:",null,"A partir de la fecha pactada y,  con el sólo requisito de la previa publicación del reintegro en el Boletín Oficial",{"$nulls":18},"TERCERA:",null,"A partir de la fecha pactada y,  con el sólo requisito de la previa publicación del reintegro en el Boletín Ofi-",{"$nulls":14}," ",{"$nulls":13},28,{"$nulls":3},"SOCIAL Y DEPORTIVO RIVER PLATE","LIGA DEPORTIVA CENTRAL VEDIA"]
[null,null,"de la Liga Amateur de Deportes de Lincoln el jugador quedará automaticamente habilitado para actuar a favor del Club",{"$nulls":20},"cial de la Liga Amateur de Deportes de Lincoln el jugador quedará automaticamente habilitado para actuar a favor del",{"$nulls":16}," ",{"$nulls":13},29,{"$nulls":3},"SOCIAL Y DEPORTIVO SARMIENTO","LIGA DEPORTIVA CENTRAL VEDIA"]
[null,null,"Cedente siempre que no exista una disposición expresa en contrario emanada de los Cuerpos de la referida Liga con facul-",{"$nulls":20},"Club Cedente siempre que no exista una disposición expresa en contrario emanada de los Cuerpos de la referida Liga",{"$nulls":16}," ",{"$nulls":13},30,{"$nulls":3},"SOCIAL Y DEPORTIVO UNION","LIGA DEPORTIVA CENTRAL VEDIA"]
[null,null,"tades al efecto.",{"$nulls":20},"con facultades al efecto.",{"$nulls":16}," ",{"$nulls":13},31]
[{"$nulls":40}," ",{"$nulls":17},"***VILLEGAS***"]
[null,null,"CUARTA:",null,"La rescisión de la Transferencia a  Prueba del mencionado jugador se realiza con estricta sujeción a las disposi-",{"$nulls":18},"CUARTA:",null,"La rescisión de la Transferencia a  Prueba del mencionado jugador se realiza con estricta sujeción a las",{"$nulls":14}," ",{"$nulls":17},"ATLETICO AMEGHINO","LIGA DE FÚTBOL DE GENERAL VILLEGAS"]
[null,null,"ciones reglamentarias vigentes y que los dos Clubes y el Jugador declaran conocer y aceptar.",{"$nulls":20},"disposiciones reglamentarias vigentes y que los dos Clubes y el Jugador declaran conocer y aceptar.",{"$nulls":16}," ",{"$nulls":17},"ATLETICO CHARLONE","LIGA DE FÚTBOL DE GENERAL VILLEGAS"]
[{"$nulls":40}," ",{"$nulls":17},"ATLETICO JUVENTUD UNIDA","LIGA DE FÚTBOL DE GENERAL VILLEGAS"]
[null,null,"QUINTA:",null,"En prueba de conformidad se firman CUATRO  (4) ejemplares en un mismo tenor y al mismo efecto, correspon-",{"$nulls":18},"QUINTA:",null,"En prueba de conformidad se firman CUATRO  (4) ejemplares en un mismo tenor y al mismo efecto, correspon-",{"$nulls":14}," ",{"$nulls":17},"ATLETICO SOCIAL CAÑADIENSE","LIGA DE FÚTBOL DE GENERAL VILLEGAS"]
[null,null,"diendo uno a cada Club, uno al Jugador y uno a la Liga.",{"$nulls":20},"diendo uno a cada Club, uno al Jugador y uno a la Liga.",{"$nulls":16}," ",{"$nulls":17},"ATLETICO VILLEGAS","LIGA DE FÚTBOL DE GENERAL VILLEGAS"]
[{"$nulls":40}," ",{"$nulls":17},"ATLETICO Y SOCIAL CAÑADA SECA","LIGA DE FÚTBOL DE GENERAL VILLEGAS"]
[{"$nulls":40}," ",{"$nulls":17},"CENTRO EMPLEADOS DE COMERCIO","LIGA DE FÚTBOL DE GENERAL VILLEGAS"]
[{"$nulls":40}," ",{"$nulls":17},"CIRCULO ITALIANO DEPORTIVO Y RECREATIVO","LIGA DE FÚTBOL DE GENERAL VILLEGAS"]
[{"$nulls":40}," ",{"$nulls":17},"DEPORTIVO Y SOCIAL INGENIERO WHITE","LIGA DE FÚTBOL DE GENERAL VILLEGAS"]
[{"$nulls":40}," ",{"$nulls":17},"ECLIPSE","LIGA DE FÚTBOL DE GENERAL VILLEGAS"]
[{"$nulls":40}," ",{"$nulls":17},"FÚTBOL CLUB BUNGE","LIGA DE FÚTBOL DE GENERAL VILLEGAS"]
[{"$nulls":40}," ",{"$nulls":17},"LARROUDE FÚTBOL CLUB","LIGA DE FÚTBOL DE GENERAL VILLEGAS"]
[{"$nulls":4},"Presidente del Club Cedente",{"$nulls":5},"Presidente del Club Cesionario",{"$nulls":14},"Presidente del Club Cedente",{"$nulls":5},"Presidente del Club Cesionario",{"$nulls":8}," ",{"$nulls":17},"SOCIAL COSMOPOLITA RECREATIVA Y SPORTIVA","LIGA DE FÚTBOL DE GENERAL VILLEGAS"]
[{"$nulls":4},{"$f":"UPPER(Z46)","v":""},{"$nulls":5},{"$f":"UPPER(AF46)","v":""},{"$nulls":14},{"$f":"IF(X10=\"\",\"\",X10)","v":""},{"$nulls":5},{"$f":"IF(AA8=\"\",\"\",AA8)","v":""},{"$nulls":8}," ",{"$nulls":17},"SOCIAL Y DEPORTIVO SARMIENTO","LIGA DE FÚTBOL DE GENERAL VILLEGAS"]
[{"$nulls":40}," ",{"$nulls":17},"SOCIAL, CULTURAL Y DEPORTIVO SANTA RITA","LIGA DE FÚTBOL DE GENERAL VILLEGAS"]
[{"$nulls":40}," ",{"$nulls":17},"SPORTIVO VILLEGAS","LIGA DE FÚTBOL DE GENERAL VILLEGAS"]
[{"$nulls":40}," ",{"$nulls":17},"VILLA REGINA","LIGA DE FÚTBOL DE GENERAL VILLEGAS"]
[{"$nulls":40}," "]
[{"$nulls":40}," ",{"$nulls":17},"***AMERICA***"]
[{"$nulls":4},"Secretario del Club Cedente",{"$nulls":5},"Secretario del Club Cesionario",{"$nulls":14},"Secretario del Club Cedente",{"$nulls":5},"Secretario del Club Cesionario",{"$nulls":8}," ",{"$nulls":17},"ARGENTINO","LIGA DE FÚTBOL DEL OESTE (AMÉRICA/RIVADAVIA)"]
[{"$nulls":4},{"$f":"UPPER(Z53)","v":""},{"$nulls":5},{"$f":"UPPER(AF53)","v":""},{"$nulls":14},{"$f":"IF(X10=\"\",\"\",X10)","v":""},{"$nulls":5},{"$f":"IF(AA8=\"\",\"\",AA8)","v":""},{"$nulls":8}," ",{"$nulls":17},"ATLETICO AMIGOS DE GORRA DE CUERO","LIGA DE FÚTBOL DEL OESTE (AMÉRICA/RIVADAVIA)"]
[{"$nulls":40}," ",{"$nulls":17},"ATLETICO BARRIO NORTE","LIGA DE FÚTBOL DEL OESTE (AMÉRICA/RIVADAVIA)"]
[{"$nulls":40}," ",{"$nulls":17},"ATLETICO RIVADAVIA","LIGA DE FÚTBOL DEL OESTE (AMÉRICA/RIVADAVIA)"]
[{"$nulls":40}," ",{"$nulls":17},"DEPORTIVO Y SOCIAL LOS ONCE","LIGA DE FÚTBOL DEL OESTE (AMÉRICA/RIVADAVIA)"]
[{"$nulls":40}," ",{"$nulls":17},"ESCUELA DE FÚTBOL PATITA SANCHEZ","LIGA DE FÚTBOL DEL OESTE (AMÉRICA/RIVADAVIA)"]
[{"$nulls":40}," ",{"$nulls":17},"FÚTBOL CLUB TRES ALGARROBOS","LIGA DE FÚTBOL DEL OESTE (AMÉRICA/RIVADAVIA)"]
[{"$nulls":8},"Firma del Jugador",{"$nulls":20},"Firma del Jugador",{"$nulls":10}," ",{"$nulls":17},"INDEPENDIENTE FOOT BALL CLUB","LIGA DE FÚTBOL DEL OESTE (AMÉRICA/RIVADAVIA)"]
[{"$nulls":58},"RACING FOOT BALL CLUB","LIGA DE FÚTBOL DEL OESTE (AMÉRICA/RIVADAVIA)"]
[{"$nulls":58},"ROOSEVELT","LIGA DE FÚTBOL DEL OESTE (AMÉRICA/RIVADAVIA)"]
[{"$nulls":58},"SANSINENA FÚTBOL CLUB","LIGA DE FÚTBOL DEL OESTE (AMÉRICA/RIVADAVIA)"]
[{"$nulls":58},"SOCIAL Y ATLETICO JORGE NEWBERY","LIGA DE FÚTBOL DEL OESTE (AMÉRICA/RIVADAVIA)"]
[{"$nulls":58},"SOCIAL Y DEPORTIVO GONZALEZ MORENO","LIGA DE FÚTBOL DEL OESTE (AMÉRICA/RIVADAVIA)"]
[{"$nulls":58},"SOCIAL Y DEPORTIVO INDEPENDIENTE FÚTBOL CLUB","LIGA DE FÚTBOL DEL OESTE (AMÉRICA/RIVADAVIA)"]
[{"$nulls":58},"ATLETICO DEFENSORES DEL ESTE","LIGA PEHUAJENSE DE FÚTBOL"]
[{"$nulls":58},"ATLETICO EMPLEADOS DE COMERCIO","LIGA PEHUAJENSE DE FÚTBOL"]
[{"$nulls":58},"ATLETICO ESTUDIANTES UNIDOS","LIGA PEHUAJENSE DE FÚTBOL"]
[{"$nulls":58},"ATLETICO GENERAL SAN MARTIN","LIGA PEHUAJENSE DE FÚTBOL"]
[{"$nulls":58},"ATLETICO INDEPENDIENTE","LIGA PEHUAJENSE DE FÚTBOL"]
[{"$nulls":58},"ATLETICO JUVENTUD UNIDA","LIGA PEHUAJENSE DE FÚTBOL"]
[{"$nulls":58},"ATLETICO K.D.T.","LIGA PEHUAJENSE DE FÚTBOL"]
[{"$nulls":58},"ATLETICO MADERENSE","LIGA PEHUAJENSE DE FÚTBOL"]
[{"$nulls":58},"ATLETICO MONES CAZON","LIGA PEHUAJENSE DE FÚTBOL"]
[{"$nulls":58},"ATLETICO PEHUAJÓ","LIGA PEHUAJENSE DE FÚTBOL"]
[{"$nulls":58},"ATLETICO URDAMPILLETA","LIGA PEHUAJENSE DE FÚTBOL"]
[{"$nulls":58},"BALOMPIE FUTBOL CLUB","LIGA PEHUAJENSE DE FÚTBOL"]
[{"$nulls":58},"BANCARIOS","LIGA PEHUAJENSE DE FÚTBOL"]
[{"$nulls":58},"BULL DOG","LIGA PEHUAJENSE DE FÚTBOL"]
[{"$nulls":58},"DEPORTIVO ARGENTINO","LIGA PEHUAJENSE DE FÚTBOL"]
[{"$nulls":58},"FUTBOL CLUB HENDERSON","LIGA PEHUAJENSE DE FÚTBOL"]
[{"$nulls":58},"SOCIAL Y DEPORTIVO INDEPENDIENTE","LIGA PEHUAJENSE DE FÚTBOL"]
[{"$nulls":58},"SOCIAL Y DEPORTIVO PROGRESO","LIGA PEHUAJENSE DE FÚTBOL"]
[{"$nulls":58},"SOCIAL Y DEPORTIVO UNION","LIGA PEHUAJENSE DE FÚTBOL"]
[{"$nulls":58},"SOCIAL Y DEPORTIVO UNZUÉ","LIGA PEHUAJENSE DE FÚTBOL"]
[{"$nulls":58},"HURACAN FÚTBOL CLUB","LIGA PEHUAJENSE DE FÚTBOL"]
[]
[]
[null,null,"FORMULARIOS PARA TRANSFERENCIAS INTERLIGAS",{"$nulls":20},"FORMULARIOS PARA TRANSFERENCIAS INTERLIGAS"]
[null,null,"CLAUSULAS ANEXAS",{"$nulls":20},"CLAUSULAS ANEXAS"]
{"$rows_empty":18}
[{"$nulls":3},"Nota:","    I - Los espacios en blanco deberán ser cruzados.",{"$nulls":19},"Nota:","    I - Los espacios en blanco deberán ser cruzados."]
[{"$nulls":4},"    II - A los fines de tener validez lo pactado en estas \"Cláusulas Anexas\" deberán firmar al pié y en",{"$nulls":20},"    II - A los fines de tener validez lo pactado en estas \"Cláusulas Anexas\" deberán firmar al pié y en"]
[{"$nulls":4},"    pruebas de conformidad los mismos firmantes del Anverso.",{"$nulls":20},"    pruebas de conformidad los mismos firmantes del Anverso."]
[]
[]
[]
[]
[]
[{"$nulls":4},"Presidente del Club Cedente",{"$nulls":5},"Presidente del Club Cesionario",{"$nulls":14},"Presidente del Club Cedente",{"$nulls":5},"Presidente del Club Cesionario"]
[]
[]
[]
[]
[]
[{"$nulls":4},"Secretario del Club Cedente",{"$nulls":5},"Secretario del Club Cesionario",{"$nulls":14},"Secretario del Club Cedente",{"$nulls":5},"Secretario del Club Cesionario"]
[]
[]
[]
[]
[]
[{"$nulls":8},"Jugador",{"$nulls":20},"Jugador"]
[]
[]
[{"$nulls":4},"Recibo por la Liga del Club CESIONARIO para ser remitido a su similar Club CEDENTE",{"$nulls":20},"Recibo por la Liga del Club CESIONARIO para ser remitido a su similar Club CEDENTE"]
[{"$nulls":4},"(art. 13º, inc. D, del R.T.I.):",{"$nulls":20},"(art. 13º, inc. D, del R.T.I.):"]
[]
[{"$nulls":5},"Fecha:",null,"/","/",{"$nulls":6},"Hora:",{"$nulls":10},"Fecha:",null,"/","/",{"$nulls":6},"Hora:"]
[]
[{"$nulls":8},"(Sello de la Liga)",{"$nulls":20},"(Sello de la Liga)"]
[]
[]
[]
[]
[{"$nulls":4},"Secretario del Club Cedente",{"$nulls":5},"Secretario del Club Cesionario",{"$nulls":14},"Secretario del Club Cedente",{"$nulls":5},"Secretario del Club Cesionario"]